bitfinex-derivatives/quotes_BTCF0:USTF0_20210105
["timestamp","ask_amount","ask_price","bid_price","bid_amount"]
[1609825756665,0.11234,30571.0,30534.0,0.1972]
[1609825756864,0.11234,30571.0,30540.0,5.119]
[1609825757466,0.11234,30571.0,30570.0,0.13632608]
[1609825757866,0.11234,30571.0,30557.0,0.14596]
[1609825759069,0.09713,30578.0,30557.0,0.14596]
[1609825759467,0.08193,30578.0,30557.0,0.14596]
[1609825759667,0.01642749,30602.0,30557.0,0.14596]
[1609825760067,0.13632608,30599.0,30591.0,0.13632608]
[1609825760268,0.25228608,30599.0,30591.0,0.13632608]
[1609825762173,0.25228608,30599.0,30557.0,0.14596]
[1609825762773,0.25228608,30599.0,30537.0,4.4092]
[1609825764181,0.11596,30599.0,30537.0,4.4092]
[1609825764582,0.13632608,30578.0,30567.0,0.13632608]
[1609825764980,0.25263608,30578.0,30539.0,2.14929946]
[1609825765382,0.25263608,30578.0,30534.0,2.25620308]
[1609825765383,0.11631,30578.0,30534.0,2.25620308]
[1609825766183,0.11631,30578.0,30534.0,0.0987]
[1609825766383,0.11631,30578.0,30523.0,2.15672739]
[1609825766583,0.11631,30578.0,30546.0,0.13632608]
[1609825767985,0.11631,30578.0,30527.0,0.14132]
[1609825768386,0.11631,30578.0,30518.0,0.10513]
[1609825768588,4.4058,30575.0,30517.0,2.157149]
[1609825768988,4.4058,30575.0,30516.0,2.15726957]
[1609825769187,0.13632608,30519.0,30516.0,2.15726957]
[1609825769390,0.26459608,30519.0,30516.0,2.15726957]
[1609825769589,0.12827,30519.0,30502.0,2.15747798]
[1609825770391,0.10217,30519.0,30500.0,2.1575367]
[1609825770991,0.04907,30519.0,30500.0,2.1575367]
[1609825771193,0.04907,30519.0,30518.0,0.13632608]
[1609825773096,0.18539608,30519.0,30518.0,0.13632608]
[1609825773494,0.04907,30519.0,30518.0,0.13632608]
[1609825773994,4.514,30555.0,30518.0,0.13632608]
[1609825774597,0.01633545,30564.0,30518.0,0.13632608]
[1609825774796,0.49140049,30546.0,30518.0,0.13632608]
[1609825774997,0.59937049,30546.0,30518.0,0.13632608]
[1609825775195,0.13632608,30543.0,30537.0,0.13632608]
[1609825775396,0.59937049,30546.0,30537.0,0.13632608]
[1609825775595,0.10797,30546.0,30537.0,0.13632608]
[1609825776400,0.50177248,30567.0,30527.0,0.09852]
[1609825778900,0.50177248,30567.0,30517.0,0.11982]
[1609825779100,0.65991248,30567.0,30517.0,0.11982]
[1609825779500,0.65991248,30567.0,30532.0,0.13632608]
[1609825779903,0.65991248,30567.0,30517.0,0.11982]
[1609825780101,0.65991248,30567.0,30527.0,0.10156]
[1609825781403,0.13632608,30552.0,30549.0,0.13632608]
[1609825781602,0.15814,30567.0,30549.0,0.13632608]
[1609825781801,0.11948,30552.0,30549.0,0.13632608]
[1609825782801,0.00538,30552.0,30549.0,0.13632608]
[1609825783002,0.15814,30567.0,30549.0,0.13632608]
[1609825783403,0.15814,30567.0,30566.0,0.13632608]
[1609825784104,0.11631,30578.0,30566.0,0.13632608]
[1609825784304,0.13632608,30579.0,30566.0,0.13632608]
[1609825785506,0.13632608,30579.0,30572.0,0.13632608]
[1609825787010,0.13632608,30579.0,30551.0,4.77232]
[1609825787210,0.26458608,30579.0,30551.0,0.13442]
[1609825787413,0.13632608,30569.0,30558.0,0.13632608]
[1609825787810,0.27086608,30569.0,30558.0,0.13632608]
[1609825788310,0.13454,30569.0,30558.0,0.13632608]
[1609825789415,0.13454,30569.0,30544.0,0.11697]
[1609825789615,0.13454,30569.0,30568.0,0.13632608]
[1609825791317,0.13454,30569.0,30550.0,0.13076]
[1609825791518,0.13454,30569.0,30537.0,5.1357]
[1609825792319,0.13454,30569.0,30539.0,2.15031212]
[1609825792718,0.13632608,30551.0,30545.0,0.13632608]
[1609825792918,0.11159,30553.0,30545.0,0.13632608]
[1609825794122,0.12826,30579.0,30545.0,0.13632608]
[1609825794321,0.283,30597.0,30545.0,0.13632608]
[1609825794722,0.283,30597.0,30543.0,0.12887]
[1609825794922,4.6437,30582.0,30543.0,0.12887]
[1609825795124,4.77199,30582.0,30539.0,2.15031212]
[1609825795323,0.13632608,30542.0,30537.0,0.13632608]
[1609825795722,0.13632608,30542.0,30525.0,2.14998904]
[1609825796926,0.13632608,30542.0,30517.0,2.27145051]
[1609825797323,0.13632608,30528.0,30524.0,0.13632608]
[1609825797725,0.09823,30530.0,30524.0,0.13632608]
[1609825798525,0.14913,30544.0,30524.0,0.13632608]
[1609825799125,0.14913,30544.0,30524.0,0.28412608]
[1609825799325,0.14913,30544.0,30536.0,0.13632608]
[1609825800726,0.01632032,30572.0,30536.0,0.13632608]
[1609825801328,0.01632032,30572.0,30563.0,0.13632608]
[1609825801530,0.01625127,30576.0,30563.0,0.13632608]
[1609825802129,0.01625127,30576.0,30547.0,0.10349]
[1609825802533,0.2859,30581.0,30536.0,2.15935132]
[1609825803934,0.2859,30581.0,30550.0,0.13632608]
[1609825804334,0.2859,30581.0,30537.0,3.927]
[1609825805237,0.30209733,30581.0,30537.0,3.927]
[1609825805635,0.30209733,30581.0,30522.0,2.16103172]
[1609825805838,0.30209733,30581.0,30517.0,0.61882029]
[1609825805839,0.2859,30581.0,30526.0,2.16047756]
[1609825806035,0.13632608,30553.0,30526.0,2.16047756]
[1609825806236,0.10872,30553.0,30526.0,2.16047756]
[1609825807039,0.10872,30553.0,30517.0,2.86951871]
[1609825807040,0.10872,30553.0,30519.0,2.16133057]
[1609825808040,0.13632608,30537.0,30519.0,2.29765665]
[1609825808438,0.26834608,30537.0,30519.0,2.29765665]
[1609825808640,0.26834608,30537.0,30519.0,2.04713057]
[1609825808839,4.0497,30534.0,30519.0,2.04713057]
[1609825809041,4.0497,30534.0,30504.0,2.35862816]
[1609825809646,4.0497,30534.0,30491.0,2.36265035]
[1609825810244,0.13632608,30492.0,30491.0,2.36265035]
[1609825810847,0.0984,30495.0,30491.0,2.36265035]
[1609825811048,0.0984,30495.0,30491.0,1.10315035]
[1609825811849,0.0984,30495.0,30480.0,2.56171949]
[1609825812248,0.13632608,30481.0,30480.0,2.56171949]
[1609825812450,0.26660608,30481.0,30480.0,2.56171949]
[1609825813255,0.26660608,30481.0,30471.0,0.13632608]
[1609825814453,0.26660608,30481.0,30444.0,2.53914951]
[1609825815053,0.13028,30481.0,30444.0,2.53914951]
[1609825815854,4.3719,30465.0,30444.0,2.53914951]
[1609825816052,4.47101,30465.0,30444.0,2.53914951]
[1609825816853,0.13632608,30445.0,30444.0,2.53914951]
[1609825817055,4.13664608,30445.0,30444.0,2.53914951]
[1609825817456,4.00032,30445.0,30444.0,2.53914951]
[1609825818255,4.00032,30445.0,30440.0,2.54302734]
[1609825819455,0.14382,30445.0,30442.0,2.9741278]
[1609825819857,0.13632608,30443.0,30406.0,0.13632608]
[1609825820555,0.14382,30445.0,30377.0,0.0981]
[1609825820755,0.14382,30445.0,30401.0,0.43181]
[1609825821856,0.13632608,30421.0,30415.0,0.13632608]
[1609825822056,0.13632608,30421.0,30401.0,0.43181]
[1609825822256,5.1866,30408.0,30401.0,0.43181]
[1609825822858,5.1866,30408.0,30401.0,0.2763]
[1609825823058,0.14178,30414.0,30401.0,0.2763]
[1609825824058,0.13632608,30402.0,30401.0,0.2763]
[1609825824258,0.27779608,30402.0,30401.0,0.2763]
[1609825824658,0.14147,30402.0,30401.0,0.2763]
[1609825825859,0.14147,30402.0,30368.0,2.13573459]
[1609825826060,0.14147,30402.0,30370.0,0.13632608]
[1609825826261,3.9258,30397.0,30370.0,0.13632608]
[1609825826459,0.14147,30402.0,30370.0,0.13632608]
[1609825826660,5.2824,30388.0,30368.0,2.13573459]
[1609825826859,5.4387,30388.0,30368.0,2.13573459]
[1609825827060,0.1563,30388.0,30368.0,2.13573459]
[1609825827861,0.14147,30402.0,30368.0,2.13573459]
[1609825828461,0.13632608,30385.0,30379.0,0.13632608]
[1609825828662,0.11503,30394.0,30379.0,0.13632608]
[1609825829462,0.11503,30394.0,30377.0,0.14809]
[1609825829662,0.14147,30402.0,30377.0,0.14809]
[1609825829862,0.14178,30414.0,30377.0,0.14809]
[1609825830066,0.11077,30426.0,30377.0,0.14809]
[1609825830266,5.2502,30414.0,30366.0,0.1018]
[1609825830471,5.2502,30414.0,30348.0,4.0088]
[1609825830472,0.13632608,30367.0,30351.0,0.13632608]
[1609825830867,0.16092,30375.0,30329.0,5.2236]
[1609825831068,5.044,30390.0,30329.0,5.2236]
[1609825832571,0.13632608,30360.0,30357.0,0.13632608]
[1609825832769,0.15923,30376.0,30309.0,0.01172439]
[1609825832969,3.9881,30369.0,30309.0,0.01172439]
[1609825833671,4.091,30369.0,30309.0,0.01172439]
[1609825834669,0.13632608,30339.0,30338.0,0.13632608]
[1609825835071,0.15192,30353.0,30338.0,0.13632608]
[1609825835272,0.15192,30353.0,30338.0,0.25148608]
[1609825836074,4.0419,30360.0,30338.0,0.11516]
[1609825836272,0.1029,30369.0,30338.0,0.11516]
[1609825836473,0.1029,30369.0,30317.0,3.7593]
[1609825836676,0.13632608,30339.0,30338.0,0.12379]
[1609825837473,0.15708,30346.0,30338.0,0.12379]
[1609825837674,0.15708,30346.0,30327.0,0.15598]
[1609825838474,0.6172,30344.0,30327.0,0.15598]
[1609825838876,0.15708,30346.0,30327.0,0.15598]
[1609825839076,4.2925,30341.0,30327.0,0.15598]
[1609825839278,0.15708,30346.0,30327.0,0.15598]
[1609825839477,0.15708,30346.0,30320.0,0.14412]
[1609825839676,0.13632608,30321.0,30320.0,0.14412]
[1609825839878,0.87312608,30321.0,30320.0,0.14412]
[1609825840680,0.87312608,30321.0,30309.0,0.01172439]
[1609825840880,0.7368,30321.0,30309.0,0.01172439]
[1609825841482,0.11356,30328.0,30309.0,0.01172439]
[1609825841681,0.13632608,30310.0,30309.0,0.16584439]
[1609825842284,0.11356,30328.0,30309.0,0.16584439]
[1609825842483,5.4414,30310.0,30309.0,0.16584439]
[1609825842684,5.4414,30310.0,30308.0,2.26328669]
[1609825843685,0.13632608,30309.0,30308.0,2.26328669]
[1609825844588,0.11356,30328.0,30308.0,2.26328669]
[1609825845289,0.4948372,30334.0,30308.0,2.26328669]
[1609825845688,0.13632608,30325.0,30322.0,0.13632608]
[1609825845898,0.13632608,30325.0,30308.0,2.26328669]
[1609825846094,0.13632608,30325.0,30307.0,0.16114]
[1609825846589,3.7681,30333.0,30307.0,0.16114]
[1609825846789,0.10089,30339.0,30307.0,0.16114]
[1609825846993,4.7325,30371.0,30307.0,0.16114]
[1609825847791,0.13632608,30341.0,30338.0,0.13632608]
[1609825848191,0.12996,30349.0,30307.0,0.16114]
[1609825849694,0.13632608,30329.0,30326.0,0.13632608]
[1609825850700,0.13568,30339.0,30326.0,0.13632608]
[1609825850898,0.13568,30339.0,30326.0,0.29698608]
[1609825851296,0.12996,30349.0,30326.0,0.29698608]
[1609825851597,5.0133,30350.0,30326.0,0.29698608]
[1609825851797,5.0133,30350.0,30340.0,0.13632608]
[1609825851798,0.13632608,30345.0,30340.0,0.13632608]
[1609825852399,0.11196,30369.0,30340.0,0.13632608]
[1609825852599,0.11196,30369.0,30340.0,0.25563608]
[1609825853698,0.24828608,30369.0,30358.0,0.13632608]
[1609825853899,0.49428397,30368.0,30358.0,0.13632608]
[1609825854100,0.06598397,30368.0,30358.0,0.13632608]
[1609825854701,4.6188,30393.0,30358.0,0.13632608]
[1609825854901,0.12821,30395.0,30352.0,0.1081]
[1609825855702,0.6451,30394.0,30352.0,0.1081]
[1609825856303,0.13632608,30370.0,30358.0,0.13632608]
[1609825856503,0.14207,30370.0,30358.0,0.13632608]
[1609825857107,0.12821,30395.0,30358.0,0.13632608]
[1609825858307,0.12821,30395.0,30352.0,0.1081]
[1609825858508,0.4938922,30392.0,30352.0,0.1081]
[1609825859008,0.13632608,30365.0,30352.0,0.1081]
[1609825859208,0.13632608,30365.0,30345.0,0.13632608]
[1609825859407,0.26809608,30365.0,30345.0,0.13632608]
[1609825860008,0.13177,30365.0,30334.0,5.0392]
[1609825860419,0.12821,30395.0,30334.0,5.0392]
[1609825860609,4.7957,30409.0,30334.0,5.13777]
[1609825861009,0.13632608,30376.0,30370.0,0.13632608]
[1609825861417,0.12842,30378.0,30334.0,5.13777]
[1609825862712,0.12842,30378.0,30334.0,0.09857]
[1609825863109,0.13632608,30363.0,30353.0,0.13632608]
[1609825863309,0.27214608,30363.0,30353.0,0.13632608]
[1609825864910,0.27214608,30363.0,30334.0,0.09857]
[1609825865110,0.13632608,30351.0,30334.0,0.09857]
[1609825865509,0.13632608,30351.0,30326.0,0.16066]
[1609825865710,0.13632608,30351.0,30310.0,4.0773]
[1609825867111,0.13632608,30345.0,30324.0,0.13632608]
[1609825869116,0.11896,30348.0,30329.0,0.13632608]
[1609825869315,0.11896,30348.0,30329.0,0.23667608]
[1609825869516,0.13582,30363.0,30329.0,0.23667608]
[1609825869715,0.2715,30377.0,30329.0,0.23667608]
[1609825870316,0.2715,30377.0,30330.0,0.0995]
[1609825870516,0.2715,30377.0,30329.0,0.23667608]
[1609825871121,0.2715,30377.0,30357.0,0.13632608]
[1609825871322,0.2715,30377.0,30357.0,0.23429608]
[1609825873125,0.13632608,30358.0,30357.0,0.23429608]
[1609825873327,0.2715,30377.0,30357.0,0.23429608]
[1609825873527,0.11666,30372.0,30357.0,0.23429608]
[1609825873727,0.11666,30372.0,30357.0,0.09797]
[1609825873927,0.11666,30372.0,30329.0,0.10035]
[1609825874429,0.11666,30372.0,30321.0,0.2972]
[1609825875233,0.13632608,30359.0,30352.0,0.13632608]
[1609825875931,0.12623,30381.0,30352.0,0.13632608]
[1609825876132,0.2704,30410.0,30352.0,0.27114608]
[1609825876331,4.6882,30393.0,30352.0,0.27114608]
[1609825877133,0.13632608,30382.0,30370.0,0.13632608]
[1609825877735,0.10804,30385.0,30370.0,0.13632608]
[1609825879135,0.13632608,30372.0,30370.0,0.13632608]
[1609825879735,0.10804,30385.0,30370.0,0.13632608]
[1609825881135,0.13632608,30381.0,30374.0,0.13632608]
[1609825882536,0.10804,30385.0,30374.0,0.13632608]
[1609825882735,0.49394099,30389.0,30374.0,0.13632608]
[1609825882935,0.49394099,30389.0,30374.0,0.25735608]
[1609825883137,0.49394099,30389.0,30380.0,0.13632608]
[1609825883739,0.13632608,30392.0,30380.0,0.13632608]
[1609825883937,0.13632608,30392.0,30374.0,0.12103]
[1609825884537,0.13421,30401.0,30374.0,0.12103]
[1609825885139,0.13632608,30398.0,30380.0,0.13632608]
[1609825885339,0.2704,30410.0,30374.0,0.12103]
[1609825887141,0.13632608,30410.0,30403.0,0.13632608]
[1609825887341,0.49345401,30419.0,30403.0,0.26267608]
[1609825887942,0.13595401,30419.0,30403.0,0.26267608]
[1609825888142,0.43506129,30430.0,30403.0,0.26267608]
[1609825888543,0.0975,30437.0,30403.0,0.26267608]
[1609825889143,0.13632608,30432.0,30427.0,0.13632608]
[1609825889344,0.13632608,30432.0,30428.0,0.0985]
[1609825889546,0.13632608,30432.0,30428.0,0.21222]
[1609825889744,0.71839449,30464.0,30428.0,0.21222]
[1609825889945,0.43879449,30464.0,30428.0,0.11372]
[1609825890146,4.0432,30478.0,30428.0,0.11372]
[1609825890147,0.44202291,30473.0,30428.0,0.11372]
[1609825890949,0.0973,30472.0,30428.0,0.11372]
[1609825891149,0.13632608,30461.0,30446.0,0.13632608]
[1609825891748,0.13632608,30461.0,30428.0,0.11372]
[1609825892351,0.10747,30472.0,30428.0,0.11372]
[1609825893151,0.13632608,30461.0,30450.0,0.13632608]
[1609825893554,0.13632608,30461.0,30451.0,0.0977]
[1609825893751,0.0982,30471.0,30451.0,0.0977]
[1609825893952,0.0982,30471.0,30451.0,0.19702]
[1609825894651,0.0982,30471.0,30452.0,0.0999]
[1609825895152,0.0982,30471.0,30466.0,0.13632608]
[1609825895353,0.2884,30474.0,30466.0,0.13977]
[1609825895754,0.2884,30474.0,30451.0,0.09932]
[1609825895953,0.43717,30474.0,30451.0,0.09932]
[1609825897259,0.13632608,30458.0,30451.0,0.09932]
[1609825897856,0.43717,30474.0,30451.0,0.09932]
[1609825898556,0.0998,30473.0,30452.0,0.0989]
[1609825899158,0.13632608,30467.0,30464.0,0.13632608]
[1609825899356,0.13632608,30467.0,30451.0,0.09932]
[1609825899758,0.13632608,30467.0,30434.0,5.4407]
[1609825900257,0.13632608,30467.0,30435.0,0.0977]
[1609825900457,0.0993,30466.0,30435.0,0.21547]
[1609825900657,0.43717,30474.0,30435.0,0.11777]
[1609825901258,0.13632608,30472.0,30461.0,0.13632608]
[1609825901658,0.13632608,30472.0,30462.0,0.099]
[1609825902158,0.0985,30471.0,30461.0,0.13632608]
[1609825902359,0.13632608,30472.0,30461.0,0.13632608]
[1609825903159,0.43717,30474.0,30471.0,0.13632608]
[1609825903561,0.0992,30473.0,30463.0,0.13699]
[1609825904162,0.14877,30474.0,30463.0,0.13699]
[1609825904361,0.02075545,32328.0,30463.0,0.13699]
[1609825904561,5.1281,30499.0,30463.0,0.13699]
[1609825904961,5.1281,30499.0,30456.0,0.108]
[1609825905161,0.13632608,30464.0,30456.0,0.108]
[1609825906567,0.1024,30468.0,30456.0,0.108]
[1609825906863,0.1024,30468.0,30457.0,0.0988]
[1609825907066,0.1024,30468.0,30457.0,0.25419]
[1609825907264,0.1024,30468.0,30467.0,0.13632608]
[1609825907465,0.0972,30470.0,30457.0,0.25419]
[1609825907664,0.0972,30519.0,30457.0,0.15539]
[1609825908665,0.0972,30493.0,30458.0,0.0972]
[1609825908864,0.0972,30493.0,30459.0,0.0976]
[1609825909064,0.8199,30493.0,30459.0,0.0976]
[1609825909268,0.13632608,30470.0,30457.0,0.15539]
[1609825910265,0.13632608,30470.0,30458.0,0.0981]
[1609825910465,0.13632608,30470.0,30457.0,0.15539]
[1609825910665,0.13632608,30470.0,30457.0,0.03769]
[1609825910865,0.70632608,30470.0,30457.0,0.03769]
[1609825911065,4.3158,30467.0,30420.0,4.0801]
[1609825911265,0.13632608,30447.0,30420.0,4.0801]
[1609825911466,0.13632608,30447.0,30241.0,0.5304]
[1609825911666,5.1376,30445.0,30394.0,4.5527]
[1609825912667,0.0991,30444.0,30395.0,0.0984]
[1609825913269,0.13632608,30420.0,30416.0,0.13632608]
[1609825913470,0.23462608,30420.0,30417.0,0.0992]
[1609825913671,0.23462608,30420.0,30416.0,0.13632608]
[1609825913871,0.13462608,30420.0,30416.0,0.13632608]
[1609825914374,0.0973,30419.0,30416.0,0.13632608]
[1609825914771,0.0973,30419.0,30417.0,0.0977]
[1609825915172,0.0973,30419.0,30416.0,0.13632608]
[1609825915173,0.0983,30420.0,30416.0,0.13632608]
[1609825915573,0.0983,30420.0,30403.0,0.12046]
[1609825916075,0.0983,30420.0,30403.0,0.21776]
[1609825916475,0.0999,30426.0,30403.0,0.21776]
[1609825917275,0.0999,30426.0,30425.0,0.13632608]
[1609825917476,0.1483,30433.0,30425.0,0.13632608]
[1609825917876,0.1483,30433.0,30415.0,0.15201]
[1609825918479,0.0972,30432.0,30415.0,0.15201]
[1609825918878,0.0972,30432.0,30416.0,0.0986]
[1609825919381,0.13632608,30430.0,30416.0,0.13632608]
[1609825920582,0.13632608,30430.0,30417.0,0.0973]
[1609825921182,0.099,30429.0,30417.0,0.0973]
[1609825921784,0.099,30429.0,30428.0,0.13632608]
[1609825922985,0.099,30429.0,30428.0,0.23352608]
[1609825923986,0.13632608,30439.0,30428.0,0.13632608]
[1609825924987,0.0997,30438.0,30429.0,0.0993]
[1609825925387,0.211,30438.0,30429.0,0.0993]
[1609825925987,0.13632608,30434.0,30429.0,0.0993]
[1609825926187,0.13632608,30434.0,30428.0,0.13632608]
[1609825927090,0.13632608,30434.0,30429.0,0.0991]
[1609825927490,0.0989,30433.0,30429.0,0.0991]
[1609825928190,0.0989,30433.0,30430.0,0.0985]
[1609825928589,0.098,30432.0,30430.0,0.0985]
[1609825928789,0.098,30432.0,30428.0,0.13632608]
[1609825928790,0.13632608,30434.0,30428.0,0.13632608]
[1609825928990,0.13632608,30434.0,30410.0,0.13278]
[1609825929791,0.0987,30433.0,30410.0,0.13278]
[1609825929993,0.13632608,30414.0,30410.0,0.13278]
[1609825930189,0.13632608,30414.0,30403.0,0.12046]
[1609825930391,4.45035,30417.0,30375.0,3.7636]
[1609825930591,0.15165,30417.0,30375.0,0.14308]
[1609825930791,4.3256,30405.0,30376.0,0.0975]
[1609825930990,4.47545,30405.0,30375.0,0.14308]
[1609825931991,0.13632608,30376.0,30375.0,0.14308]
[1609825932192,0.13632608,30376.0,30375.0,0.0978]
[1609825932393,0.13632608,30376.0,30349.0,2.49348771]
[1609825932394,0.27238608,30376.0,30356.0,2.11676718]
[1609825932792,4.0197,30375.0,30356.0,2.11676718]
[1609825933194,4.0197,30375.0,30315.0,2.13429703]
[1609825933593,0.27238608,30376.0,30315.0,2.13429703]
[1609825933794,0.27238608,30376.0,30318.0,4.3344]
[1609825933992,0.13632608,30359.0,30354.0,0.13632608]
[1609825935194,0.13632608,30359.0,30318.0,4.3344]
[1609825935392,0.14856,30361.0,30318.0,4.3344]
[1609825935994,0.13632608,30337.0,30315.0,0.09952]
[1609825936995,0.1148,30337.0,30315.0,0.09952]
[1609825937997,0.13632608,30323.0,30316.0,0.13632608]
[1609825938195,0.13632608,30323.0,30315.0,0.09952]
[1609825938396,0.098,30322.0,30315.0,0.09952]
[1609825938596,0.098,30322.0,30315.0,0.05162]
[1609825938796,0.098,30322.0,30282.0,5.4281]
[1609825938996,0.13632608,30323.0,30281.0,2.14622867]
[1609825939196,0.13632608,30323.0,30281.0,2.25041867]
[1609825939400,0.13632608,30323.0,30281.0,0.10419]
[1609825939997,0.10976,30328.0,30297.0,0.13632608]
[1609825940199,0.10976,30328.0,30297.0,0.28200608]
[1609825941098,0.7807,30327.0,30297.0,0.14568]
[1609825941298,0.10976,30328.0,30297.0,0.14568]
[1609825941498,4.316,30317.0,30281.0,0.10419]
[1609825941697,4.45685,30317.0,30281.0,0.10419]
[1609825942399,0.14085,30317.0,30281.0,0.10419]
[1609825944303,0.49508218,30319.0,30274.0,4.3396]
[1609825944501,0.49508218,30319.0,30298.0,0.13632608]
[1609825944702,0.49508218,30319.0,30298.0,0.27212608]
[1609825944901,0.49508218,30319.0,30298.0,0.1358]
[1609825945303,0.49508218,30319.0,30274.0,0.12317]
[1609825945501,0.60710218,30319.0,30274.0,0.12317]
[1609825945704,0.11202,30319.0,30274.0,0.12317]
[1609825946402,0.13632608,30315.0,30307.0,0.13632608]
[1609825946602,0.15106,30327.0,30307.0,0.13632608]
[1609825946802,0.15106,30327.0,30307.0,0.25330608]
[1609825947505,4.6381,30359.0,30307.0,0.25330608]
[1609825947704,4.6381,30359.0,30307.0,0.11698]
[1609825948404,0.13632608,30339.0,30331.0,0.13632608]
[1609825948805,0.1527,30353.0,30331.0,0.13632608]
[1609825949006,0.01380895,30365.0,30331.0,0.11176]
[1609825949405,0.49472296,30341.0,30331.0,0.11176]
[1609825950007,0.01380895,30365.0,30331.0,0.11176]
[1609825950409,0.11052,30392.0,30331.0,0.11176]
[1609825950808,0.11052,30392.0,30378.0,0.13632608]
[1609825951209,0.01371672,30403.0,30378.0,0.13632608]
[1609825951409,5.0419,30410.0,30378.0,0.13632608]
[1609825951609,0.0139147,30434.0,30378.0,0.13632608]
[1609825951809,0.0139147,30434.0,30377.0,0.12542]
[1609825952008,0.1534447,30434.0,30377.0,0.12542]
[1609825952209,0.13953,30434.0,30377.0,0.12542]
[1609825952710,0.13632608,30425.0,30409.0,0.13632608]
[1609825952912,0.24256608,30425.0,30409.0,0.13632608]
[1609825953512,0.13953,30434.0,30409.0,0.13431915]
[1609825953713,0.13953,30434.0,30409.0,0.24612915]
[1609825954714,0.13632608,30432.0,30427.0,0.13632608]
[1609825954913,0.13632608,30432.0,30409.0,0.11181]
[1609825955315,0.13953,30434.0,30409.0,0.11181]
[1609825955517,0.13953,30434.0,30398.0,0.10215]
[1609825956717,0.13953,30434.0,30399.0,5.0909]
[1609825957115,0.13953,30434.0,30433.0,0.13632608]
[1609825957317,0.13632608,30438.0,30433.0,0.13632608]
[1609825957715,4.4722,30474.0,30433.0,0.13632608]
[1609825958019,4.4722,30474.0,30413.0,0.12376]
[1609825958218,4.57912,30474.0,30413.0,0.12376]
[1609825958418,0.0986,30473.0,30413.0,0.12376]
[1609825958620,0.0986,30473.0,30399.0,5.0909]
[1609825959021,0.13632608,30416.0,30408.0,0.13632608]
[1609825959421,0.11433,30421.0,30408.0,0.13632608]
[1609825960525,0.11433,30421.0,30405.0,0.15105]
[1609825960724,0.11433,30421.0,30398.0,0.10215]
[1609825961123,0.13632608,30409.0,30390.0,0.13632608]
[1609825961324,0.25505608,30409.0,30390.0,0.13632608]
[1609825961525,0.25505608,30409.0,30377.0,0.12542]
[1609825961725,0.11873,30409.0,30364.0,5.3845]
[1609825963129,0.13632608,30366.0,30364.0,5.3845]
[1609825963528,0.11996,30381.0,30364.0,5.3845]
[1609825964329,0.11996,30381.0,30363.0,0.09978]
[1609825965132,0.13632608,30364.0,30363.0,0.09978]
[1609825965532,0.13632608,30364.0,30331.0,4.85176]
[1609825966130,0.12602,30370.0,30331.0,4.85176]
[1609825967131,0.13632608,30340.0,30331.0,4.85176]
[1609825967333,0.13632608,30340.0,30331.0,0.11176]
[1609825967732,0.13462,30343.0,30324.0,0.12182]
[1609825969036,0.27094608,30343.0,30330.0,0.13632608]
[1609825969235,0.27094608,30343.0,30324.0,0.12182]
[1609825969635,0.27094608,30343.0,30308.0,4.601]
[1609825970035,0.13462,30343.0,30308.0,4.601]
[1609825970635,0.13462,30343.0,30279.0,2.11420179]
[1609825971035,0.13632608,30314.0,30301.0,0.13632608]
[1609825971635,0.13632608,30314.0,30279.0,2.11420179]
[1609825972535,0.15899,30317.0,30279.0,2.11420179]
[1609825972735,0.15899,30317.0,30279.0,2.27041179]
[1609825973138,0.13632608,30297.0,30290.0,0.13632608]
[1609825974537,0.13632608,30297.0,30279.0,2.27041179]
[1609825975137,0.13632608,30297.0,30286.0,0.13632608]
[1609825975336,0.13633,30308.0,30286.0,0.28062608]
[1609825975637,0.15899,30317.0,30286.0,0.28062608]
[1609825975836,0.12065,30324.0,30286.0,0.28062608]
[1609825976039,0.12065,30324.0,30286.0,1.05952608]
[1609825976240,0.49514432,30315.0,30286.0,1.05952608]
[1609825976438,0.49514432,30315.0,30286.0,0.9232]
[1609825977139,0.13632608,30312.0,30311.0,0.13632608]
[1609825977338,0.13632608,30312.0,30286.0,0.9232]
[1609825977539,0.13632608,30312.0,30286.0,0.1443]
[1609825977939,3.8417,30315.0,30286.0,0.1443]
[1609825979140,0.13632608,30287.0,30286.0,0.1443]
[1609825979340,0.10859,30305.0,30286.0,0.1443]
[1609825979540,0.6183,30303.0,30286.0,0.1443]
[1609825980141,4.3183,30299.0,30279.0,0.15621]
[1609825980342,0.10859,30305.0,30277.0,2.11634903]
[1609825980542,4.4815,30294.0,30277.0,2.11634903]
[1609825980744,0.15341,30294.0,30277.0,1.87704903]
[1609825981543,4.3217,30269.0,30255.0,0.01180873]
[1609825981742,0.12088,30272.0,30255.0,0.01180873]
[1609825982143,0.13632608,30256.0,30255.0,0.01180873]
[1609825982344,0.13632608,30256.0,30246.0,2.3240614]
[1609825982543,5.014,30255.0,30246.0,2.3240614]
[1609825982944,0.12088,30272.0,30246.0,2.3240614]
[1609825983143,0.10761,30265.0,30246.0,2.4773214]
[1609825983344,0.10761,30265.0,30246.0,2.3296214]
[1609825983543,5.5223,30247.0,30246.0,1.9986214]
[1609825984144,5.4223,30247.0,30246.0,1.9986214]
[1609825984344,5.58218,30247.0,30246.0,1.1801614]
[1609825984544,5.71850608,30247.0,30246.0,1.0334614]
[1609825984745,5.81610608,30247.0,30246.0,1.0334614]
[1609825984945,5.81610608,30247.0,30246.0,0.5860614]
[1609825985145,5.67978,30247.0,30238.0,0.0983]
[1609825985345,0.25748,30247.0,30235.0,0.0095]
[1609825985544,0.25748,30247.0,30217.0,0.0976]
[1609825985745,4.7186,30236.0,30217.0,0.0976]
[1609825985945,0.25748,30247.0,30224.0,0.0567]
[1609825986144,4.5809,30228.0,30193.0,2.5184863]
[1609825986346,4.5809,30228.0,30224.0,0.12436]
[1609825986545,0.13632608,30225.0,30224.0,0.00346]
[1609825986744,0.13632608,30225.0,30193.0,2.5184863]
[1609825986945,0.13632608,30225.0,30155.0,2.50872485]
[1609825987146,4.8706,30203.0,30155.0,2.50872485]
[1609825988145,4.8706,30203.0,30195.0,0.0997]
[1609825988345,4.9689,30203.0,30155.0,2.50872485]
[1609825988545,0.13632608,30171.0,30161.0,0.13632608]
[1609825988745,0.0987,30218.0,30161.0,0.13632608]
[1609825988949,4.4283,30164.0,30161.0,0.27805608]